bitfinex-derivatives/quotes_BTCF0:USTF0_20260111
["timestamp","ask_amount","ask_price","bid_price","bid_amount"]
[1768096728288,0.02389884,90695.0,90681.0,0.00961522]
[1768096728489,0.00582026,90696.0,90681.0,0.00961522]
[1768096728696,0.02389883,90695.0,90681.0,0.00961522]
[1768096728898,0.00582026,90696.0,90681.0,0.00961522]
[1768096729193,0.02389883,90695.0,90681.0,0.00961522]
[1768096729395,0.00582026,90696.0,90681.0,0.00961522]
[1768096729594,0.02389883,90695.0,90681.0,0.00961522]
[1768096729790,0.00582026,90696.0,90681.0,0.00961522]
[1768096729995,0.02389883,90695.0,90681.0,0.00961522]
[1768096730195,0.00582026,90696.0,90681.0,0.00961522]
[1768096730495,0.02389884,90695.0,90681.0,0.00961522]
[1768096730695,0.00582026,90696.0,90681.0,0.00961522]
[1768096730891,0.02389884,90695.0,90681.0,0.00961522]
[1768096731105,0.00582026,90696.0,90681.0,0.00961522]
[1768096731304,0.02389884,90695.0,90681.0,0.00961522]
[1768096731500,0.00582026,90696.0,90681.0,0.00961522]
[1768096731702,0.02389885,90695.0,90681.0,0.00961522]
[1768096731902,0.00582026,90696.0,90681.0,0.00961522]
[1768096732200,0.02389885,90695.0,90681.0,0.00961522]
[1768096732400,0.00582026,90696.0,90681.0,0.00961522]
[1768096732602,0.02389887,90695.0,90681.0,0.00961522]
[1768096732802,0.00582026,90696.0,90681.0,0.00961522]
[1768096733004,0.02389887,90695.0,90681.0,0.00961522]
[1768096733202,0.00582026,90696.0,90681.0,0.00961522]
[1768096733502,0.02389889,90695.0,90681.0,0.00961522]
[1768096733703,0.00582026,90696.0,90681.0,0.00961522]
[1768096733902,0.02389888,90695.0,90681.0,0.00961522]
[1768096734201,0.00582026,90696.0,90681.0,0.00961522]
[1768096734403,0.0238989,90695.0,90681.0,0.00961522]
[1768096734593,0.00582026,90696.0,90681.0,0.00961522]
[1768096734792,0.0238989,90695.0,90681.0,0.00961522]
[1768096734996,0.00582026,90696.0,90681.0,0.00961522]
[1768096735196,0.0238989,90695.0,90681.0,0.00961522]
[1768096735396,0.00582026,90696.0,90681.0,0.00961522]
[1768096735598,0.02389892,90695.0,90681.0,0.00961522]
[1768096735897,0.01685926,90696.0,90681.0,0.00961522]
[1768096736095,0.02389892,90695.0,90681.0,0.00961522]
[1768096736304,0.01685926,90696.0,90681.0,0.00961522]
[1768096736506,0.02389895,90695.0,90681.0,0.00961522]
[1768096736706,0.00582026,90696.0,90681.0,0.00961522]
[1768096736911,0.02389895,90695.0,90681.0,0.00961522]
[1768096737098,0.00582026,90696.0,90681.0,0.00961522]
[1768096737298,0.03493795,90695.0,90681.0,0.00961522]
[1768096737594,0.00582026,90696.0,90681.0,0.00961522]
[1768096737796,0.02389899,90695.0,90681.0,0.00961522]
[1768096738006,0.00582026,90696.0,90681.0,0.00961522]
[1768096738207,0.02389899,90695.0,90681.0,0.00961522]
[1768096738393,0.01685926,90696.0,90681.0,0.00961522]
[1768096738600,0.02389908,90695.0,90681.0,0.00961522]
[1768096738807,0.01685926,90696.0,90681.0,0.00961522]
[1768096739003,0.02389908,90695.0,90681.0,0.00961522]
[1768096739205,0.01685926,90696.0,90681.0,0.00961522]
[1768096739401,0.02389921,90695.0,90681.0,0.00961522]
[1768096739602,0.01685926,90696.0,90681.0,0.00961522]
[1768096739805,0.02389921,90695.0,90681.0,0.00961522]
[1768096740001,0.01685926,90696.0,90681.0,0.00961522]
[1768096740201,0.02389921,90695.0,90681.0,0.00961522]
[1768096740402,0.01685926,90696.0,90681.0,0.00961522]
[1768096740608,0.02389942,90695.0,90681.0,0.00961522]
[1768096740810,0.00582026,90696.0,90681.0,0.00961522]
[1768096741098,0.02389942,90695.0,90681.0,0.00961522]
[1768096741400,0.00582026,90696.0,90681.0,0.00961522]
[1768096741597,0.0238994,90695.0,90681.0,0.00961522]
[1768096741805,0.00582026,90696.0,90681.0,0.00961522]
[1768096742106,0.0238994,90695.0,90681.0,0.00961522]
[1768096742305,0.00582026,90696.0,90681.0,0.00961522]
[1768096742505,0.02389941,90695.0,90681.0,0.00961522]
[1768096742705,0.00582026,90696.0,90681.0,0.00961522]
[1768096742898,0.02389941,90695.0,90681.0,0.00961522]
[1768096743105,0.00582026,90696.0,90681.0,0.00961522]
[1768096743306,0.02389941,90695.0,90681.0,0.00961522]
[1768096743505,0.00582026,90696.0,90681.0,0.00961522]
[1768096743712,0.02389941,90695.0,90681.0,0.00961522]
[1768096743905,0.00582026,90696.0,90681.0,0.00961522]
[1768096744105,0.02389941,90695.0,90681.0,0.00961522]
[1768096744305,0.00582026,90696.0,90681.0,0.00961522]
[1768096744613,0.0238994,90695.0,90681.0,0.00961522]
[1768096744808,0.00582026,90696.0,90681.0,0.00961522]
[1768096745010,0.0238994,90695.0,90681.0,0.00961522]
[1768096745212,0.00582026,90696.0,90681.0,0.00961522]
[1768096745404,0.0238994,90695.0,90681.0,0.00961522]
[1768096745704,0.00582026,90696.0,90681.0,0.00961522]
[1768096746004,0.0238994,90695.0,90681.0,0.00961522]
[1768096746201,0.00582026,90696.0,90681.0,0.00961522]
[1768096746402,0.0238994,90695.0,90681.0,0.00961522]
[1768096746600,0.00582026,90696.0,90681.0,0.00961522]
[1768096746808,0.0238994,90695.0,90681.0,0.00961522]
[1768096747007,0.00582026,90696.0,90681.0,0.00961522]
[1768096747201,0.0238994,90695.0,90681.0,0.00961522]
[1768096747410,0.00582026,90696.0,90681.0,0.00961522]
[1768096747609,0.0238994,90695.0,90681.0,0.00961522]
[1768096747908,0.00582026,90696.0,90681.0,0.00961522]
[1768096748112,0.0238994,90695.0,90681.0,0.00961522]
[1768096748309,0.00582026,90696.0,90681.0,0.00961522]
[1768096748508,0.02389009,90695.0,90681.0,0.00961522]
[1768096748712,0.00582026,90696.0,90681.0,0.00961522]
[1768096748913,0.02389009,90695.0,90681.0,0.00961522]
[1768096749107,0.00582026,90696.0,90681.0,0.00961522]
[1768096749308,0.02389009,90695.0,90681.0,0.00961522]
[1768096749509,0.00582026,90696.0,90681.0,0.00961522]
[1768096749811,0.02389009,90695.0,90681.0,0.00961522]
[1768096750011,0.00582026,90696.0,90681.0,0.00961522]
[1768096750308,0.02389009,90695.0,90681.0,0.00961522]
[1768096750505,0.00582026,90696.0,90681.0,0.00961522]
[1768096750707,0.02389009,90695.0,90681.0,0.00961522]
[1768096750903,0.00582026,90696.0,90681.0,0.00961522]
[1768096751104,0.02389009,90695.0,90681.0,0.00961522]
[1768096751314,0.00582026,90696.0,90681.0,0.00961522]
[1768096751515,0.0238901,90695.0,90681.0,0.00961522]
[1768096751715,0.00582026,90696.0,90681.0,0.00961522]
[1768096751915,0.0238901,90695.0,90681.0,0.00961522]
[1768096752117,0.00582026,90696.0,90681.0,0.00961522]
[1768096752417,0.0238901,90695.0,90681.0,0.00961522]
[1768096752609,0.00582026,90696.0,90681.0,0.00961522]
[1768096752811,0.02389011,90695.0,90681.0,0.00961522]
[1768096753012,0.00582026,90696.0,90681.0,0.00961522]
[1768096753221,0.02389011,90695.0,90681.0,0.00961522]
[1768096753513,0.00582026,90696.0,90681.0,0.00961522]
[1768096753706,0.02389014,90695.0,90681.0,0.00961522]
[1768096753907,0.02389014,90694.0,90681.0,0.00961522]
[1768096754109,0.02389014,90693.0,90681.0,0.00961522]
[1768096754310,0.02389014,90692.0,90682.0,0.01104]
[1768096754611,0.02389014,90691.0,90682.0,0.01104]
[1768096754818,0.02389014,90690.0,90682.0,0.01104]
[1768096755014,0.02389014,90689.0,90682.0,0.01104]
[1768096755215,0.02389014,90688.0,90682.0,0.01104]
[1768096755415,0.00582026,90696.0,90682.0,0.01104]
[1768096755616,0.02389021,90695.0,90682.0,0.01104]
[1768096755819,0.02389021,90694.0,90682.0,0.01104]
[1768096756116,0.02389021,90693.0,90682.0,0.01104]
[1768096756319,0.02389021,90692.0,90682.0,0.01104]
[1768096756519,0.02389021,90691.0,90682.0,0.01104]
[1768096756813,0.02389021,90690.0,90682.0,0.01104]
[1768096757011,0.02389021,90689.0,90682.0,0.01104]
[1768096757219,0.00582026,90696.0,90682.0,0.01104]
[1768096757220,0.02389021,90688.0,90682.0,0.01104]
[1768096757435,0.00582026,90696.0,90682.0,0.01104]
[1768096757624,0.02389021,90695.0,90682.0,0.01104]
[1768096757815,0.02389021,90694.0,90682.0,0.01104]
[1768096758015,0.02389021,90693.0,90682.0,0.01104]
[1768096758212,0.02389021,90692.0,90682.0,0.01104]
[1768096758423,0.02389021,90691.0,90682.0,0.01104]
[1768096758625,0.02389021,90690.0,90682.0,0.01104]
[1768096758926,0.02389021,90689.0,90682.0,0.01104]
[1768096759124,0.02389021,90688.0,90682.0,0.01104]
[1768096759324,0.00582026,90696.0,90682.0,0.01104]
[1768096759520,0.02389021,90695.0,90682.0,0.01104]
[1768096759720,0.02389021,90694.0,90682.0,0.01104]
[1768096759924,0.02389021,90693.0,90682.0,0.01104]
[1768096760123,0.02389021,90692.0,90682.0,0.01104]
[1768096760322,0.02389021,90691.0,90682.0,0.01104]
[1768096760523,0.02389021,90690.0,90682.0,0.01104]
[1768096760826,0.02389021,90689.0,90682.0,0.01104]
[1768096761030,0.02389021,90688.0,90682.0,0.01104]
[1768096761327,0.02254,90690.0,90682.0,0.01104]
[1768096761526,0.02389021,90689.0,90682.0,0.01104]
[1768096761829,0.02389021,90688.0,90682.0,0.01104]
[1768096762019,0.02254,90690.0,90682.0,0.01104]
[1768096762219,0.02389021,90689.0,90682.0,0.01104]
[1768096762519,0.02389021,90688.0,90682.0,0.01104]
[1768096762820,0.02254,90690.0,90682.0,0.01104]
[1768096763015,0.02389022,90689.0,90682.0,0.01104]
[1768096763213,0.02389022,90688.0,90682.0,0.01104]
[1768096763418,0.02254,90690.0,90682.0,0.01104]
[1768096768223,0.02254,90690.0,90684.0,0.01104]
[1768096768729,0.00582026,90696.0,90684.0,0.01104]
[1768096768929,0.02389021,90695.0,90684.0,0.01104]
[1768096769231,0.00582026,90696.0,90684.0,0.01104]
[1768096769528,0.02389021,90695.0,90684.0,0.01104]
[1768096769728,0.00582026,90696.0,90684.0,0.01104]
[1768096769917,0.02389021,90695.0,90684.0,0.01104]
[1768096770120,0.00582026,90696.0,90684.0,0.01104]
[1768096770419,0.02389021,90695.0,90684.0,0.01104]
[1768096770619,0.00582026,90696.0,90684.0,0.01104]
[1768096770914,0.02389021,90695.0,90684.0,0.01104]
[1768096771115,0.00582026,90696.0,90684.0,0.01104]
[1768096771331,0.02389021,90695.0,90684.0,0.01104]
[1768096771528,0.00582026,90696.0,90684.0,0.01104]
[1768096771730,0.0238902,90695.0,90684.0,0.01104]
[1768096772028,0.00582026,90696.0,90684.0,0.01104]
[1768096772229,0.0238902,90695.0,90681.0,0.00961522]
[1768096772435,0.00582026,90696.0,90681.0,0.00961522]
[1768096772728,0.04617019,90695.0,90681.0,0.00961522]
[1768096772929,0.02228,90695.0,90681.0,0.00961522]
[1768096773130,0.02228,90695.0,90682.0,0.01104]
[1768096773330,0.02228,90695.0,90681.0,0.00961522]
[1768096777837,0.02228,90695.0,90681.0,0.02065522]
[1768096786937,0.02228,90695.0,90681.0,0.00961522]
[1768096793357,0.02228,90695.0,90681.0,0.02065522]
[1768096793558,0.02384465,90694.0,90681.0,0.02065522]
[1768096793749,0.02384465,90693.0,90681.0,0.02065522]
[1768096793950,0.02384465,90692.0,90681.0,0.02065522]
[1768096794153,0.02384465,90691.0,90681.0,0.02065522]
[1768096794449,0.02384465,90690.0,90681.0,0.02065522]
[1768096794650,0.02384465,90689.0,90681.0,0.02065522]
[1768096794851,6.5e-07,90688.0,90684.0,0.00968124]
[1768096795059,0.02228,90695.0,90684.0,0.00968124]
[1768096795563,0.02228,90695.0,90685.0,0.02072124]
[1768096795959,0.09384,90699.0,90685.0,0.02072124]
[1768096799962,0.03212,90698.0,90685.0,0.00968124]
[1768096806954,0.043158,90698.0,90685.0,0.00968124]
[1768096807160,0.03212,90698.0,90685.0,0.00968124]
[1768096813373,0.03212,90698.0,90683.0,0.01104]
[1768096813574,0.03712806,90698.0,90683.0,0.01104]
[1768096815174,0.00500806,90698.0,90683.0,0.01104]
[1768096816475,0.00500806,90698.0,90681.0,0.01104]
[1768096816872,0.00500806,90698.0,90681.0,0.02017945]
[1768096818174,0.03323,90697.0,90683.0,0.01104]
[1768096824586,0.03323,90697.0,90681.0,0.00913945]
[1768096824774,0.03323,90697.0,90681.0,0.02017945]
[1768096825281,0.03323,90697.0,90683.0,0.01104]
[1768096838791,0.03323,90697.0,90682.0,0.01104]
[1768096839490,0.03323,90697.0,90684.0,0.01104]
[1768096843594,0.02329443,90696.0,90684.0,0.01104]
[1768096843797,0.02329443,90695.0,90684.0,0.01104]
[1768096843987,0.02329443,90694.0,90684.0,0.01104]
[1768096844181,0.02329443,90693.0,90684.0,0.01104]
[1768096844386,0.02329443,90692.0,90684.0,0.01104]
[1768096844590,0.02329443,90691.0,90684.0,0.01104]
[1768096844884,0.03323,90697.0,90684.0,0.01104]
[1768096845092,0.02329447,90696.0,90684.0,0.01104]
[1768096845294,0.02329447,90695.0,90684.0,0.01104]
[1768096845487,0.02329447,90694.0,90684.0,0.01104]
[1768096845688,0.02329447,90693.0,90684.0,0.01104]
[1768096845893,0.02329447,90692.0,90684.0,0.01104]
[1768096846188,0.02329447,90691.0,90681.0,0.00913945]
[1768096846392,0.03323,90697.0,90682.0,0.01104]
[1768096846593,0.02329458,90696.0,90682.0,0.01104]
[1768096846784,0.02329458,90695.0,90682.0,0.01104]
[1768096846983,0.02329458,90694.0,90682.0,0.01104]
[1768096847195,0.02329458,90693.0,90682.0,0.01104]
[1768096847384,0.02329458,90692.0,90682.0,0.01104]
[1768096847585,0.02329458,90691.0,90682.0,0.01104]
[1768096847785,0.03323,90697.0,90682.0,0.01104]
[1768096847994,0.02329457,90696.0,90682.0,0.01104]
[1768096848294,0.03323,90697.0,90682.0,0.01104]
[1768096848295,0.02329457,90695.0,90682.0,0.01104]
[1768096848493,0.02329457,90694.0,90682.0,0.01104]
[1768096848696,0.02329457,90693.0,90682.0,0.01104]
[1768096848887,0.02329457,90692.0,90682.0,0.01104]
[1768096849088,0.02329457,90691.0,90682.0,0.01104]
[1768096849285,0.03323,90697.0,90682.0,0.01104]
[1768096849487,0.02329456,90696.0,90682.0,0.01104]
[1768096849693,0.02329456,90695.0,90682.0,0.01104]
[1768096849893,0.02329456,90694.0,90682.0,0.01104]
[1768096850093,0.02329456,90693.0,90682.0,0.01104]
[1768096850296,0.02329456,90692.0,90682.0,0.01104]
[1768096850495,0.02329456,90691.0,90682.0,0.01104]
[1768096850696,0.03323,90697.0,90682.0,0.01104]
[1768096850898,0.02329417,90696.0,90681.0,0.00913945]
[1768096851207,0.02329417,90695.0,90681.0,0.00913945]
[1768096851389,0.02329417,90694.0,90681.0,0.00913945]
[1768096851592,0.02329417,90693.0,90681.0,0.00913945]
[1768096851793,0.02329417,90692.0,90681.0,0.00913945]
[1768096851999,0.02329417,90691.0,90681.0,0.00913945]
[1768096852201,0.03807054,90697.0,90681.0,0.00913945]
[1768096852498,0.02800521,90696.0,90681.0,0.00913945]
[1768096852698,0.02329415,90695.0,90681.0,0.00913945]
[1768096852887,0.02329415,90694.0,90681.0,0.00913945]
[1768096853086,0.02329415,90693.0,90681.0,0.00913945]
[1768096853299,0.02329415,90692.0,90681.0,0.00913945]
[1768096853500,0.02329415,90691.0,90681.0,0.00913945]
[1768096853700,0.00471106,90696.0,90681.0,0.00913945]
[1768096864611,0.09384,90699.0,90683.0,0.009378]
[1768096864911,0.02329327,90698.0,90685.0,0.009378]
[1768096865109,0.02172,90698.0,90685.0,0.009378]
[1768096866521,0.032758,90698.0,90685.0,0.009378]
[1768096880528,0.03740505,90698.0,90679.0,0.08007479]
[1768096880729,0.03740505,90698.0,90680.0,0.009378]
[1768096883635,0.02317248,90697.0,90680.0,0.009378]
[1768096883824,0.02317248,90696.0,90680.0,0.009378]
[1768096884024,0.02317248,90695.0,90680.0,0.009378]
[1768096884228,0.02317248,90694.0,90680.0,0.009378]
[1768096884426,0.02317248,90693.0,90680.0,0.009378]
[1768096884627,0.02317248,90692.0,90680.0,0.009378]
[1768096884823,0.03740505,90698.0,90680.0,0.009378]
[1768096885028,0.02317247,90697.0,90680.0,0.009378]
[1768096885329,0.02317247,90696.0,90680.0,0.009378]
[1768096885528,0.02317247,90695.0,90680.0,0.009378]
[1768096885729,0.02317247,90694.0,90680.0,0.009378]
[1768096885929,0.02317247,90693.0,90680.0,0.009378]
[1768096886134,0.02317247,90692.0,90680.0,0.009378]
[1768096886332,0.03740505,90698.0,90680.0,0.009378]
[1768096886534,0.02317248,90697.0,90680.0,0.009378]
[1768096886738,0.02317248,90696.0,90680.0,0.009378]
[1768096886938,0.02317248,90695.0,90680.0,0.009378]
[1768096887134,0.02317248,90694.0,90680.0,0.009378]
[1768096887334,0.02317248,90693.0,90680.0,0.009378]
[1768096887535,0.02317248,90692.0,90680.0,0.009378]
[1768096887735,0.03740505,90698.0,90680.0,0.009378]
[1768096887936,0.02317248,90697.0,90680.0,0.009378]
[1768096888239,0.02317248,90696.0,90680.0,0.009378]
[1768096888539,0.02317248,90695.0,90680.0,0.009378]
[1768096888740,0.02317248,90694.0,90680.0,0.009378]
[1768096888940,0.02317248,90693.0,90680.0,0.009378]
[1768096889240,0.02317248,90692.0,90680.0,0.009378]
[1768096889440,0.03740505,90698.0,90680.0,0.009378]
[1768096889641,0.02317251,90697.0,90680.0,0.009378]
[1768096889842,0.02317251,90696.0,90680.0,0.009378]
[1768096890140,0.02317251,90695.0,90680.0,0.009378]
[1768096890340,0.02317251,90694.0,90680.0,0.009378]
[1768096890641,0.02317251,90693.0,90680.0,0.009378]
[1768096890841,0.02317251,90692.0,90680.0,0.009378]
[1768096891041,0.03740505,90698.0,90680.0,0.009378]
[1768096891246,0.02317253,90697.0,90680.0,0.009378]
[1768096891542,0.02317253,90696.0,90680.0,0.009378]
[1768096891841,0.02317253,90695.0,90680.0,0.009378]
[1768096892042,0.02317253,90694.0,90680.0,0.009378]
[1768096892242,0.02317253,90693.0,90681.0,0.01104]
[1768096892433,0.02317253,90692.0,90681.0,0.01104]
[1768096892633,0.02636705,90698.0,90681.0,0.01104]
[1768096892830,0.02317257,90697.0,90681.0,0.01104]
[1768096893031,0.02317257,90696.0,90681.0,0.01104]
[1768096893240,0.02317257,90695.0,90681.0,0.01104]
[1768096893443,0.02317257,90694.0,90681.0,0.01104]
[1768096893634,0.02636705,90698.0,90682.0,0.05965579]
[1768096903357,0.03740505,90698.0,90682.0,0.05965579]
[1768096903656,0.03740505,90698.0,90681.0,0.0090379]
[1768096909164,0.01568505,90698.0,90681.0,0.0090379]
[1768096912268,0.02682,90697.0,90681.0,0.0090379]
[1768096920184,0.02682,90697.0,90682.0,0.01104]
[1768096922386,0.02682,90697.0,90681.0,0.0090379]
[1768096922582,0.02682,90697.0,90682.0,0.01104]
[1768096923185,0.02682,90697.0,90681.0,0.0090379]
[1768096923387,0.02682,90697.0,90683.0,0.01104]
[1768096923583,0.02682,90697.0,90681.0,0.0090379]
[1768096923785,0.02682,90697.0,90682.0,0.01104]
[1768096924082,0.02682,90697.0,90682.0,0.02053859]
[1768096924782,0.02682,90697.0,90684.0,0.01104]
[1768096924987,0.01655041,90705.0,90684.0,0.01104]
[1768096924988,0.00551241,90705.0,90692.0,0.00949859]
[1768096928682,0.00551241,90705.0,90687.0,0.00932943]
[1768096928889,0.00513638,90704.0,90686.0,0.06915438]
[1768096929483,0.00513638,90704.0,90686.0,0.00949859]
[1768096929683,0.00513638,90704.0,90686.0,0.02053859]
[1768096930083,0.00513638,90704.0,90686.0,0.00949859]
[1768096930291,0.011038,90703.0,90686.0,0.00949859]
[1768096930589,0.15202087,90700.0,90686.0,0.00949859]
[1768096930781,0.011038,90703.0,90686.0,0.00949859]
[1768096930981,0.15202087,90700.0,90686.0,0.00949859]
[1768096932990,0.15202087,90700.0,90687.0,0.01104]
[1768096934590,0.15202087,90700.0,90686.0,0.00949859]
[1768096934792,0.15202087,90700.0,90686.0,0.02053859]
[1768096935595,0.00526753,90703.0,90686.0,0.02053859]
[1768096935791,0.15202087,90700.0,90686.0,0.02053859]
[1768096936488,0.00526753,90703.0,90686.0,0.02053859]
[1768096937993,0.00526753,90703.0,90688.0,0.011039]
[1768096938692,0.00526753,90703.0,90686.0,0.00949859]
[1768096939092,0.00526753,90703.0,90686.0,0.02053859]
[1768096940199,0.00526753,90703.0,90686.0,0.00949859]
[1768096941602,0.00526753,90703.0,90687.0,0.01104]
[1768096943602,0.00526753,90703.0,90688.0,0.05965579]
[1768096944904,0.00551241,90705.0,90688.0,0.05965579]
[1768096945100,0.02905,90702.0,90688.0,0.05965579]
[1768096945299,0.02905,90702.0,90690.0,0.00949859]
[1768096953302,0.02905,90702.0,90690.0,0.06915438]
[1768096954312,0.02905,90702.0,90691.0,0.05965579]
[1768096958117,0.02905,90702.0,90692.0,0.05965579]
[1768096973529,0.02905,90702.0,90693.0,0.05965579]
[1768096973730,0.02905,90702.0,90692.0,0.05965579]
[1768096976231,0.02905,90702.0,90692.0,0.0695965]
[1768096983728,0.02905,90702.0,90692.0,0.00994071]
[1768096989038,0.00551241,90705.0,90692.0,0.00994071]
[1768096992239,0.03111,90704.0,90692.0,0.00994071]
[1768096993641,0.03111,90704.0,90692.0,0.0695965]
[1768097003659,0.03111,90704.0,90692.0,0.00994071]
[1768097009065,0.03111,90704.0,90693.0,0.00908149]
[1768097010554,0.00551241,90705.0,90693.0,0.00908149]
[1768097014062,0.02371,90704.0,90693.0,0.00908149]
[1768097018167,0.02371,90704.0,90694.0,0.03976185]
[1768097018363,0.02371,90704.0,90695.0,0.03976185]
[1768097018960,0.02371,90704.0,90693.0,0.00908149]
[1768097023673,0.02206858,90703.0,90693.0,0.00908149]
[1768097023873,0.02371,90704.0,90693.0,0.00908149]
[1768097024075,0.02206858,90703.0,90693.0,0.00908149]
[1768097024273,0.02371,90704.0,90693.0,0.00908149]
[1768097024475,0.02206858,90703.0,90693.0,0.00908149]
[1768097024778,0.02371,90704.0,90693.0,0.00908149]
[1768097024967,0.02206858,90703.0,90693.0,0.00908149]
[1768097025167,0.02371,90704.0,90693.0,0.00908149]
[1768097025473,0.02206857,90703.0,90693.0,0.00908149]
[1768097025673,0.02371,90704.0,90693.0,0.00908149]
[1768097025874,0.02206857,90703.0,90693.0,0.00908149]
[1768097026176,0.02371,90704.0,90693.0,0.00908149]
[1768097026370,0.02206857,90703.0,90693.0,0.00908149]
[1768097026570,0.02371,90704.0,90693.0,0.00908149]
[1768097026870,0.02206857,90703.0,90693.0,0.00908149]
[1768097027070,0.02371,90704.0,90693.0,0.00908149]
[1768097027269,0.02206857,90703.0,90693.0,0.00908149]
[1768097027569,0.02371,90704.0,90693.0,0.00908149]
[1768097027770,0.02206856,90703.0,90693.0,0.00908149]
[1768097028070,0.02371,90704.0,90693.0,0.00908149]
[1768097028271,0.02206856,90703.0,90693.0,0.00908149]
[1768097028573,0.02371,90704.0,90693.0,0.00908149]
[1768097028776,0.02206853,90703.0,90693.0,0.00908149]
[1768097028974,0.02371,90704.0,90693.0,0.00908149]
[1768097029175,0.02206883,90703.0,90693.0,0.00908149]
[1768097029377,0.02371,90704.0,90693.0,0.00908149]
[1768097029577,0.02206882,90703.0,90693.0,0.00908149]
[1768097029765,0.02371,90704.0,90693.0,0.00908149]
[1768097029968,0.011038,90702.0,90684.0,0.05965579]
[1768097030178,0.011038,90702.0,90686.0,0.00925376]
[1768097030478,0.15199547,90700.0,90686.0,0.00925376]
[1768097031977,0.15199547,90700.0,90686.0,0.01841593]
[1768097032180,0.16303347,90700.0,90686.0,0.01841593]
[1768097033678,0.16303347,90700.0,90691.0,0.05965579]
[1768097033876,0.011039,90692.0,90677.0,0.07951299]
[1768097034082,0.15199547,90690.0,90678.0,0.09384]
[1768097034275,0.15199547,90690.0,90676.0,0.009849]
[1768097034480,0.15199547,90690.0,90678.0,0.09384]
[1768097034682,0.16303447,90690.0,90678.0,0.09384]
[1768097034877,0.011039,90690.0,90678.0,0.09384]
[1768097035081,0.011039,90693.0,90678.0,0.09384]
[1768097041587,0.00908535,90697.0,90678.0,0.11294042]
[1768097041588,0.02012435,90697.0,90678.0,0.11294042]
[1768097043088,0.011039,90695.0,90678.0,0.11294042]
[1768097044890,0.011039,90695.0,90679.0,0.01819826]
[1768097047688,0.00445266,90698.0,90679.0,0.01819826]
[1768097047689,0.011039,90694.0,90679.0,0.01819826]
[1768097048085,0.00445266,90698.0,90679.0,0.01819826]
[1768097048294,0.011039,90693.0,90679.0,0.01819826]
[1768097048989,0.15199547,90690.0,90679.0,0.01819826]
[1768097056195,0.15199547,90690.0,90679.0,0.00915948]
[1768097062698,0.01537976,90696.0,90679.0,0.00915948]
[1768097062899,0.15199547,90690.0,90679.0,0.00915948]
[1768097064199,0.01537976,90696.0,90679.0,0.00915948]
[1768097065004,0.00434076,90696.0,90679.0,0.00915948]
[1768097066298,0.03343,90695.0,90679.0,0.00915948]
[1768097070208,0.03777632,90695.0,90679.0,0.00915948]
[1768097072211,0.03777632,90695.0,90680.0,0.01104]
[1768097073704,0.03777632,90695.0,90679.0,0.00915948]
[1768097076114,0.00434348,90694.0,90678.0,0.09384]
[1768097076914,0.00434348,90694.0,90677.0,0.011041]
[1768097079423,0.00434348,90694.0,90679.0,0.011041]
[1768097083131,0.03343,90695.0,90679.0,0.011041]
[1768097087831,0.03343,90695.0,90676.0,0.2034731]
[1768097089227,0.03343,90695.0,90678.0,0.011041]
[1768097089531,0.00460813,90697.0,90680.0,0.01104]
[1768097089731,0.00460813,90697.0,90676.0,0.1924321]
[1768097090131,0.00460813,90697.0,90682.0,0.01104]
[1768097090326,0.00460813,90697.0,90679.0,0.011041]
[1768097090830,0.00460813,90697.0,90676.0,0.1924321]
[1768097091031,0.00460813,90697.0,90677.0,0.00914027]
[1768097091532,0.00460813,90697.0,90677.0,0.01907911]
[1768097092031,0.02674,90696.0,90677.0,0.01907911]
[1768097092233,0.02674,90696.0,90686.0,0.01104]
[1768097099836,0.02674,90696.0,90682.0,0.01104]
[1768097101637,0.02674,90696.0,90681.0,0.01104]
[1768097102038,0.02674,90696.0,90680.0,0.01104]
[1768097103340,0.02674,90696.0,90683.0,0.01104]
[1768097108445,0.02674,90696.0,90685.0,0.01104]
[1768097110044,0.00464063,90699.0,90685.0,0.01104]
[1768097112240,0.00464063,90699.0,90679.0,0.43554054]
[1768097112649,0.00464063,90699.0,90683.0,0.01104]
[1768097112838,0.02734,90698.0,90685.0,0.01104]
[1768097116448,0.02734,90698.0,90680.0,0.00961286]
[1768097116653,0.02734,90698.0,90687.0,0.01104]
[1768097117858,0.00943249,90703.0,90683.0,0.0189232]
[1768097118154,0.11789753,90702.0,90683.0,0.0189232]
[1768097118355,0.02405753,90701.0,90683.0,0.0189232]
[1768097119254,0.09384,90702.0,90683.0,0.0189232]
[1768097119456,0.09384,90702.0,90692.0,0.011039]
[1768097123156,0.09384,90702.0,90683.0,0.0189232]
[1768097123157,0.09384,90702.0,90689.0,0.011039]
[1768097125160,0.09384,90702.0,90683.0,0.0189232]
[1768097126160,0.09384,90702.0,90690.0,0.011039]
[1768097128261,0.09384,90702.0,90683.0,0.0189232]
[1768097129164,0.09384,90702.0,90690.0,0.011039]
[1768097135062,0.09384,90702.0,90686.0,0.01104]
[1768097136456,0.09384,90702.0,90688.0,0.011039]
[1768097139265,0.09384,90702.0,90690.0,0.011039]
[1768097141367,0.09384,90702.0,90688.0,0.01104]
[1768097146571,0.15201156,90700.0,90690.0,0.011039]
[1768097147173,0.15201156,90700.0,90683.0,0.00961286]
[1768097148176,0.15201156,90700.0,90688.0,0.011039]
[1768097149574,0.15201156,90700.0,90691.0,0.011039]
[1768097149775,0.15201156,90700.0,90683.0,0.00961286]
[1768097150075,0.15201156,90700.0,90689.0,0.011039]
[1768097150870,0.15201156,90700.0,90683.0,0.00961286]
[1768097151176,0.15201156,90700.0,90688.0,0.01104]
[1768097151783,0.15201156,90700.0,90683.0,0.00961286]
[1768097152284,0.15201156,90700.0,90688.0,0.011039]
[1768097152582,0.15201156,90700.0,90683.0,0.00961286]
[1768097153085,0.15201156,90700.0,90690.0,0.011039]
[1768097153286,0.15201156,90700.0,90683.0,0.00961286]
[1768097153785,0.15201156,90700.0,90690.0,0.011039]
[1768097154085,0.15201156,90700.0,90683.0,0.00961286]
[1768097155084,0.15201156,90700.0,90687.0,0.01104]
[1768097155582,0.15201156,90700.0,90688.0,0.01104]
[1768097156481,0.15201156,90700.0,90685.0,0.01104]
[1768097156786,0.15201156,90700.0,90680.0,0.24056194]
[1768097156987,0.00962367,90698.0,90681.0,0.01104]
[1768097157489,0.00962367,90698.0,90679.0,0.49625916]
[1768097157490,0.15201156,90691.0,90679.0,0.49625916]
[1768097158186,0.15201156,90691.0,90679.0,0.41674617]
[1768097158988,0.00962367,90698.0,90679.0,0.41674617]
[1768097161685,0.00962367,90689.0,90667.0,0.09056739]
[1768097161890,0.00962367,90689.0,90662.0,0.10504353]
[1768097161891,0.15201156,90680.0,90662.0,0.51164953]
[1768097162391,0.01778413,90679.0,90662.0,0.406606]